[Event "18th Charleroi Open-A 2019"]
[Site "Charleroi"]
[Date "2019.07.30"]
[Round "5.14"]
[White "Roels, Frederik"]
[Black "Sclacmender, Julien"]
[Result "1/2-1/2"]
[ECO "E62"]
[WhiteElo "1944"]
[BlackElo "2269"]
[Annotator "NA"]
[PlyCount "105"]
[EventDate "2019.07.22"]
[EventType "swiss"]
[EventCountry "BEL"]
[SourceTitle "playchess.com"]
[Source "ChessBase"]
[SourceQuality "1"]
[TimeControl "40/5400+30:1800+30"]

1. d4 {[%emt 0:00:00]} Nf6 {[%emt 0:01:41]} 2. Nf3 {[%emt 0:00:00]} g6 {[%emt 0:00:03]} 3. g3 {[%emt 0:00:00]} Bg7 {[%emt 0:00:04]} 4. Bg2 {[%emt 0:00:00]} O-O {[%emt 0:00:19]} 5. O-O {[%emt 0:00:07]} d6 {[%emt 0:02:45]} 6. c4 {[%emt 0:01:33]} c6 {[%emt 0:05:10]} 7. Nc3 {[%emt 0:05:17]} a6 {[%emt 0:06:11]} 8. a4 {[%emt 0:02:05]} a5 {[%emt 0:09:04]} 9. b3 {[%emt 0:05:35]} Na6 {[%emt 0:02:01]} 10. Bb2 {[%emt 0:00:21]} Qb6 {[%emt 0:01:53]} 11. e3 {[%emt 0:02:13]} Bf5 {[%emt 0:10:16]} 12. Ba3 {[%emt 0:10:42]} Nb4 {[%emt 0:05:59]} 13. Ne1 {[%emt 0:08:25]} e5 {[%emt 0:12:46]} 14. Rc1 {[%emt 0:13:47]} Rfe8 {[%emt 0:05:45]} 15. Bxb4 {[%emt 0:01:59]} Qxb4 {[%emt 0:02:39]} 16. e4 {[%emt 0:07:51]} Bg4 {[%emt 0:01:30]} 17. f3 {[%emt 0:00:12]} Bc8 {[%emt 0:04:07]} 18. d5 {[%emt 0:00:31]} Bh6 {[%emt 0:04:23]} 19. Rc2 {[%emt 0:05:08]} cxd5 {[%emt 0:02:44]} 20. Nb5 {[%emt 0:05:05]} Qc5+ {[%emt 0:03:53]} 21. Kh1 {[%emt 0:00:09]} d4 {[%emt 0:04:32]} 22. Nd3 {[%emt 0:00:27]} Qb6 {[%emt 0:00:24]} 23. c5 {[%emt 0:00:29]} dxc5 {[%emt 0:00:23]} 24. Rxc5 {[%emt 0:00:20]} Nd7 {[%emt 0:02:01]} 25. Rc7 {[%emt 0:01:53]} Nf8 {[%emt 0:02:34]} 26. Rc5 {[%emt 0:02:12]} Nd7 {[%emt 0:01:57]} 27. Rc7 {[%emt 0:00:07]} Nf8 {[%emt 0:02:20]} 28. Rc5 {[%emt 0:00:22]} Ne6 {[%emt 0:01:50]} 29. Rxe5 {[%emt 0:00:12]} Bd7 {[%emt 0:00:59]} 30. Nb2 {[%emt 0:27:58]} Bc6 {[%emt 0:01:14]} 31. Nc4 {[%emt 0:00:00]} Qd8 {[%emt 0:00:06]} 32. Rd5 {[%emt 0:00:00]} Bxd5 {[%emt 0:00:45]} 33. exd5 {[%emt 0:00:00]} Qxd5 {[%emt 0:00:30]} 34. Nb6 {[%emt 0:00:00]} Qc5 {[%emt 0:00:34]} 35. Nxa8 {[%emt 0:00:00]} Rxa8 {[%emt 0:01:01]} 36. f4 {[%emt 0:00:00]} Rd8 {[%emt 0:01:39]} 37. f5 {[%emt 0:00:00]} gxf5 {[%emt 0:00:39]} 38. Qh5 {[%emt 0:00:00]} Bg7 {[%emt 0:00:34]} 39. Rxf5 {[%emt 0:00:00]} Qe7 {[%emt 0:00:28]} 40. Na3 {[%emt 0:00:00]} d3 {[%emt 0:01:12]} 41. Nc4 {[%emt 0:17:48]} Nd4 {[%emt 0:19:49]} 42. Rf1 {[%emt 0:00:00]} Nxb3 {[%emt 0:01:38]} 43. Bd5 {[%emt 0:00:00]} Rf8 {[%emt 0:01:07]} 44. Qf5 {[%emt 0:00:00]} Nc5 {[%emt 0:01:42]} 45. Nxa5 {[%emt 0:00:00]} b6 {[%emt 0:04:23]} 46. Nc4 {[%emt 0:00:00]} Qd7 {[%emt 0:01:57]} 47. Qxd7 {[%emt 0:00:00]} Nxd7 {[%emt 0:00:01]} 48. Rd1 {[%emt 0:00:00]} Nc5 {[%emt 0:01:39]} 49. Nxb6 {[%emt 0:00:00]} Rd8 {[%emt 0:01:04]} 50. a5 {[%emt 0:00:00]} Bd4 {[%emt 0:00:33]} 51. Kg2 {[%emt 0:00:00]} Ne6 {[%emt 0:01:16]} 52. Bxe6 {[%emt 0:00:00]} Bxb6 {[%emt 0:00:25]} 53. Bxf7+ {[%emt 0:00:00]} 1/2-1/2

[Event "18th Charleroi Open-A 2019"]
[Site "Charleroi"]
[Date "2019.07.30"]
[Round "5.17"]
[White "Miulescu, Gabriel"]
[Black "Goormachtigh, Johan"]
[Result "0-1"]
[ECO "B48"]
[WhiteElo "2020"]
[BlackElo "2164"]
[Annotator "NA"]
[PlyCount "46"]
[EventDate "2019.07.22"]
[EventType "swiss"]
[EventCountry "BEL"]
[SourceTitle "playchess.com"]
[Source "ChessBase"]
[SourceQuality "1"]
[TimeControl "40/5400+30:1800+30"]

1. e4 {[%emt 1:30:30]} c5 {[%emt 0:00:00]} 2. Nf3 {[%emt 0:00:00]} e6 {[%emt 0:00:09]} 3. d4 {[%emt 0:00:00]} cxd4 {[%emt 0:00:06]} 4. Nxd4 {[%emt 0:00:00]} Nc6 {[%emt 0:00:18]} 5. Nc3 {[%emt 0:00:14]} Qc7 {[%emt 0:00:42]} 6. Be3 {[%emt 0:01:12]} a6 {[%emt 0:00:16]} 7. Qd2 {[%emt 0:00:42]} Nf6 {[%emt 0:00:26]} 8. O-O-O {[%emt 0:00:37]} Bb4 {[%emt 0:02:26]} 9. f3 {[%emt 0:02:44]} O-O {[%emt 0:00:22]} 10. g4 {[%emt 0:03:09]} b5 {[%emt 0:00:45]} 11. g5 {[%emt 0:02:16]} Nh5 {[%emt 0:00:49]} 12. a3 {[%emt 0:03:40]} Be7 {[%emt 0:00:00]} 13. Be2 {[%emt 0:02:19]} Nxd4 {[%emt 0:00:00]} 14. Qxd4 {[%emt 0:00:00]} Nf4 {[%emt 0:00:00]} 15. h4 {[%emt 0:00:00]} Rd8 {[%emt 0:02:00]} 16. Rdg1 {[%emt 0:00:00]} Qxc3 {[%emt 0:00:00]} 17. Qxc3 {[%emt 0:00:00]} Nxe2+ {[%emt 0:01:00]} 18. Kd2 {[%emt 0:00:00]} Nxc3 {[%emt 0:00:00]} 19. Kxc3 {[%emt 0:00:00]} d5 {[%emt 0:00:00]} 20. e5 {[%emt 0:00:00]} d4+ {[%emt 0:00:00]} 21. Bxd4 {[%emt 0:00:00]} Bb7 {[%emt 0:00:00]} 22. Rh3 {[%emt 0:00:00]} Rac8+ {[%emt 0:00:00]} 23. Kd3 {[%emt 0:00:00]} Rxd4+ {[%emt 0:00:00]} 0-1

[Event "18th Charleroi Open-A 2019"]
[Site "Charleroi"]
[Date "2019.07.30"]
[Round "5.18"]
[White "Lacroix, Bruno"]
[Black "De Weird, Matthias"]
[Result "1-0"]
[ECO "E61"]
[WhiteElo "2152"]
[BlackElo "2009"]
[Annotator "NA"]
[PlyCount "111"]
[EventDate "2019.07.22"]
[EventType "swiss"]
[EventCountry "BEL"]
[SourceTitle "playchess.com"]
[Source "ChessBase"]
[SourceQuality "1"]
[TimeControl "40/5400+30:1800+30"]

1. c4 {[%emt 0:00:00]} g6 {[%emt 0:00:00]} 2. d4 {[%emt 0:00:00]} Bg7 {[%emt 0:00:00]} 3. Nf3 {[%emt 0:00:00]} d6 {[%emt 0:00:00]} 4. Nc3 {[%emt 0:00:00]} Nf6 {[%emt 0:00:03]} 5. e3 {[%emt 0:00:04]} O-O {[%emt 0:00:04]} 6. Be2 {[%emt 0:00:02]} c5 {[%emt 0:00:19]} 7. O-O {[%emt 0:00:16]} Nbd7 {[%emt 0:00:45]} 8. d5 {[%emt 0:00:44]} a6 {[%emt 0:00:06]} 9. h3 {[%emt 0:00:35]} Ne8 {[%emt 0:00:19]} 10. e4 {[%emt 0:03:23]} e5 {[%emt 0:00:29]} 11. dxe6 {[%emt 0:02:44]} fxe6 {[%emt 0:00:09]} 12. Bg5 {[%emt 0:00:45]} Ndf6 {[%emt 0:01:10]} 13. e5 {[%emt 0:00:47]} Bd7 {[%emt 0:01:08]} 14. exf6 {[%emt 0:00:26]} Bxf6 {[%emt 0:00:06]} 15. Bh6 {[%emt 0:01:21]} Rf7 {[%emt 0:00:22]} 16. Qd2 {[%emt 0:00:30]} Bc6 {[%emt 0:01:07]} 17. Ng5 {[%emt 0:03:13]} Re7 {[%emt 0:01:08]} 18. Nge4 {[%emt 0:00:28]} Rf7 {[%emt 0:02:00]} 19. Nxf6+ {[%emt 0:01:47]} Qxf6 {[%emt 0:00:10]} 20. Bg5 {[%emt 0:02:02]} Qe5 {[%emt 0:00:40]} 21. Qe3 {[%emt 0:00:30]} Rf5 {[%emt 0:00:49]} 22. Qxe5 {[%emt 0:00:57]} Rxe5 {[%emt 0:00:08]} 23. Be3 {[%emt 0:00:58]} Rd8 {[%emt 0:00:48]} 24. Rad1 {[%emt 0:01:16]} b6 {[%emt 0:00:27]} 25. g4 {[%emt 0:01:31]} g5 {[%emt 0:00:35]} 26. Rd3 {[%emt 0:02:16]} d5 {[%emt 0:01:02]} 27. f4 {[%emt 0:01:33]} Rxe3 {[%emt 0:00:53]} 28. Rxe3 {[%emt 0:00:04]} d4 {[%emt 0:00:03]} 29. Rd3 {[%emt 0:00:21]} gxf4 {[%emt 0:00:04]} 30. Bf3 {[%emt 0:01:15]} Bxf3 {[%emt 0:00:05]} 31. Rfxf3 {[%emt 0:00:09]} e5 {[%emt 0:00:06]} 32. Ne4 {[%emt 0:00:28]} Nd6 {[%emt 0:00:05]} 33. Nxd6 {[%emt 0:06:47]} Rxd6 {[%emt 0:00:05]} 34. Rd1 {[%emt 0:00:02]} Kg7 {[%emt 0:06:31]} 35. Rf2 {[%emt 0:01:19]} Kf6 {[%emt 0:00:49]} 36. Re2 {[%emt 0:00:27]} b5 {[%emt 0:01:34]} 37. b3 {[%emt 0:07:21]} bxc4 38. bxc4 {[%emt 0:00:04]} h5 {[%emt 0:03:54]} 39. Kf2 {[%emt 0:01:19]} hxg4 {[%emt 0:00:17]} 40. hxg4 {[%emt 0:00:04]} Rb6 {[%emt 0:01:26]} 41. Kf3 {[%emt 0:31:29]} Rb4 {[%emt 0:30:07]} 42. Rc2 {[%emt 0:01:25]} Ra4 {[%emt 0:00:55]} 43. Rd3 {[%emt 0:01:48]} Kg5 {[%emt 0:04:18]} 44. Ke4 {[%emt 0:00:51]} Rb4 {[%emt 0:00:06]} 45. Kxe5 {[%emt 0:02:06]} Rb8 {[%emt 0:00:10]} 46. Kd5 {[%emt 0:00:48]} Kxg4 {[%emt 0:00:33]} 47. Rg2+ {[%emt 0:00:40]} Kf5 {[%emt 0:00:09]} 48. Kxc5 {[%emt 0:00:33]} Ke4 {[%emt 0:00:05]} 49. Rxd4+ {[%emt 0:00:10]} Ke3 {[%emt 0:00:05]} 50. Rdd2 {[%emt 0:02:19]} f3 {[%emt 0:00:18]} 51. Rgf2 {[%emt 0:00:09]} Rc8+ {[%emt 0:00:14]} 52. Kb4 {[%emt 0:00:06]} a5+ {[%emt 0:01:54]} 53. Kc3 {[%emt 0:00:22]} Rh8 {[%emt 0:00:24]} 54. Rh2 {[%emt 0:00:54]} Rf8 {[%emt 0:01:27]} 55. Rd3+ {[%emt 0:00:15]} Ke4 {[%emt 0:00:06]} 56. Rf2 {[%emt 0:56:17] Kd5} 1-0

[Event "18th Charleroi Open-A 2019"]
[Site "Charleroi"]
[Date "2019.07.30"]
[Round "5.19"]
[White "Van Dijck, Bjarne"]
[Black "Duhayon, Yves"]
[Result "0-1"]
[ECO "C56"]
[WhiteElo "2053"]
[BlackElo "2132"]
[Annotator "RC"]
[PlyCount "98"]
[EventDate "2019.07.22"]
[EventType "swiss"]
[EventCountry "BEL"]
[SourceTitle "playchess.com"]
[Source "ChessBase"]
[SourceQuality "1"]
[TimeControl "40/5400+30:1800+30"]

1. e4 {[%emt 0:00:00]} e5 {[%emt 0:00:00]} 2. Nf3 {[%emt 1:31:00]} Nc6 {[%emt 1:31:00]} 3. Bc4 {[%emt 0:00:30]} Nf6 {[%emt 0:00:30]} 4. d4 {[%emt 0:00:30]} exd4 {[%emt 0:00:00]} 5. O-O {[%emt 0:00:00]} Nxe4 6. Re1 {[%emt 0:01:00]} d5 {[%emt 0:01:30]} 7. Bxd5 {[%emt 0:00:00]} Qxd5 {[%emt 0:00:00]} 8. Nc3 {[%emt 0:01:00]} Qh5 {[%emt 0:00:00]} 9. Nxe4 {[%emt 0:00:00]} Be6 {[%emt 0:01:30]} 10. Bg5 {[%emt 0:01:00]} Bd6 {[%emt 0:00:30]} 11. h4 {[%emt 0:00:30]} h6 {[%emt 0:00:30]} 12. Nxd6+ {[%emt 0:00:00]} cxd6 {[%emt 0:00:30]} 13. Bf4 {[%emt 0:01:00]} g5 {[%emt 0:00:30]} 14. Bg3 {[%emt 0:00:30]} gxh4 {[%emt 0:00:30]} 15. Nxh4 Qg5 {[%emt 0:00:30]} 16. Nf3 {[%emt 0:01:00]} Qd5 {[%emt 0:00:00]} 17. c3 Kd7 {[%emt 0:01:00]} 18. Nxd4 {[%emt 0:01:00]} Nxd4 {[%emt 0:00:00]} 19. Qxd4 {[%emt 0:00:00]} Qxd4 {[%emt 0:00:00]} 20. cxd4 {[%emt 0:01:00]} Bd5 {[%emt 0:01:30]} 21. Re3 {[%emt 0:00:30]} Rhe8 {[%emt 0:00:30]} 22. b3 {[%emt 0:00:30]} a5 {[%emt 0:00:30]} 23. Rae1 {[%emt 0:00:30]} Re6 {[%emt 0:00:30]} 24. Bf4 {[%emt 0:00:30]} h5 {[%emt 0:00:30]} 25. f3 {[%emt 0:00:30]} a4 {[%emt 0:00:30]} 26. Kf2 {[%emt 0:00:00]} axb3 {[%emt 0:00:00]} 27. axb3 {[%emt 0:00:11]} Ra2+ 28. R3e2 {[%emt 0:01:19]} Rexe2+ {[%emt 0:00:00]} 29. Rxe2 {[%emt 0:00:30]} Rxe2+ {[%emt 0:00:00]} 30. Kxe2 {[%emt 0:00:30]} Bxb3 {[%emt 0:02:30]} 31. Kd3 {[%emt 0:00:00]} d5 {[%emt 0:00:30]} 32. Kc3 {[%emt 0:01:00]} Bc4 {[%emt 0:00:30]} 33. Be5 {[%emt 0:00:30]} Bf1 {[%emt 0:00:00]} 34. g3 Bg2 {[%emt 0:00:00]} 35. f4 Ke6 36. Kd2 Be4 {[%emt 0:00:00]} 37. Bc7 {[%emt 0:00:30]} b5 {[%emt 0:00:00]} 38. Ba5 Kf5 {[%emt 0:00:00]} 39. Ke3 Kg4 {[%emt 0:00:00]} 40. Kf2 {[%emt 0:00:39]} h4 {[%emt 0:00:00]} 41. gxh4 {[%emt 0:30:30]} Kxf4 {[%emt 0:13:09]} 42. Bb4 {[%emt 0:00:30]} Bg6 {[%emt 0:00:00]} 43. Ke2 {[%emt 0:00:30]} Ke4 {[%emt 0:00:30]} 44. Bc5 {[%emt 0:00:00]} Bh5+ {[%emt 0:00:00]} 45. Kf2 {[%emt 0:00:00]} f5 {[%emt 0:00:00]} 46. Kg3 {[%emt 0:00:00]} f4+ {[%emt 0:00:00]} 47. Kf2 {[%emt 0:00:30]} f3 {[%emt 0:00:00]} 48. Bb6 {[%emt 0:00:00]} b4 {[%emt 0:00:00]} 49. Ba5 {[%emt 0:00:30]} b3 {[%emt 0:01:00]} 0-1

[Event "18th Charleroi Open-A 2019"]
[Site "Charleroi"]
[Date "2019.07.30"]
[Round "5.20"]
[White "Bruno, Ricardo"]
[Black "Roger, Mehdi"]
[Result "0-1"]
[ECO "C11"]
[WhiteElo "2007"]
[BlackElo "2125"]
[Annotator "NA"]
[PlyCount "89"]
[EventDate "2019.07.22"]
[EventType "swiss"]
[EventCountry "BEL"]
[SourceTitle "playchess.com"]
[Source "ChessBase"]
[SourceQuality "1"]
[TimeControl "40/5400+30:1800+30"]

1. e4 {[%emt 1:30:30]} e6 {[%emt 1:30:30]} 2. d4 {[%emt 0:00:30]} d5 {[%emt 0:00:30]} 3. Nc3 {[%emt 0:00:30]} Nf6 {[%emt 0:00:30]} 4. e5 {[%emt 0:00:30]} Nfd7 {[%emt 0:00:30]} 5. f4 {[%emt 0:00:30]} c5 {[%emt 0:00:30]} 6. Nf3 {[%emt 0:00:30]} Nc6 {[%emt 0:00:30]} 7. Be3 {[%emt 0:00:30]} Be7 {[%emt 0:00:30]} 8. Qd2 {[%emt 0:00:30]} O-O {[%emt 0:00:30]} 9. Be2 {[%emt 0:00:30]} b6 {[%emt 0:00:30]} 10. O-O {[%emt 0:00:30]} f5 {[%emt 0:00:30]} 11. Nb5 {[%emt 0:00:30]} a6 {[%emt 0:00:30]} 12. Nd6 {[%emt 0:00:30]} Bxd6 {[%emt 0:00:30]} 13. exd6 {[%emt 0:00:30]} Nf6 {[%emt 0:00:30]} 14. c4 {[%emt 0:00:30]} Qxd6 {[%emt 0:00:30]} 15. cxd5 {[%emt 0:00:30]} exd5 {[%emt 0:00:30]} 16. dxc5 {[%emt 0:00:30]} bxc5 {[%emt 0:00:30]} 17. Qc2 {[%emt 0:00:30]} d4 {[%emt 0:00:30]} 18. Bc4+ {[%emt 0:00:30]} Be6 {[%emt 0:00:30]} 19. Bd2 {[%emt 0:00:30]} Ne4 {[%emt 0:00:30]} 20. Bxe6+ {[%emt 0:00:30]} Qxe6 {[%emt 0:00:30]} 21. Ng5 {[%emt 0:00:30]} Qd5 {[%emt 0:00:30]} 22. Rac1 {[%emt 0:00:30]} d3 {[%emt 0:00:30]} 23. Qd1 {[%emt 0:00:30]} Nd4 {[%emt 0:00:30]} 24. Kh1 {[%emt 0:00:30]} Ne2 {[%emt 0:00:30]} 25. Ra1 {[%emt 0:00:30]} Rf6 {[%emt 0:00:30]} 26. Nxe4 {[%emt 0:00:30]} fxe4 {[%emt 0:00:30]} 27. Be3 {[%emt 0:00:30]} Rh6 {[%emt 0:00:30]} 28. f5 {[%emt 0:00:30]} Rh5 {[%emt 0:00:30]} 29. g4 {[%emt 0:00:30]} Rh4 {[%emt 0:00:30]} 30. Rf2 {[%emt 0:00:30]} Qe5 {[%emt 0:00:30]} 31. Qb3+ {[%emt 0:00:30]} Kh8 {[%emt 0:00:30]} 32. Qb7 {[%emt 0:00:30]} Rf8 {[%emt 0:00:30]} 33. f6 {[%emt 0:00:30]} gxf6 {[%emt 0:00:30]} 34. g5 {[%emt 0:00:30]} f5 {[%emt 0:00:30]} 35. Qb6 {[%emt 0:00:30]} Kg8 {[%emt 0:00:30]} 36. Bxc5 {[%emt 0:00:30]} e3 {[%emt 0:00:30]} 37. Rg2 {[%emt 0:00:30]} Qe4 {[%emt 0:00:30]} 38. Qb3+ {[%emt 0:00:30]} Qc4 {[%emt 0:00:30]} 39. Bxe3 {[%emt 0:00:30]} Kg7 {[%emt 0:00:30]} 40. Rd1 {[%emt 0:00:30]} Qe4 {[%emt 0:00:30]} 41. Bf2 {[%emt 0:30:30]} Rg4 {[%emt 0:30:30]} 42. Bg3 Nxg3+ 43. hxg3 Rxg3 44. Qc3+ Kg6 45. Qd2 0-1

[Event "18th Charleroi Open-A 2019"]
[Site "Charleroi"]
[Date "2019.07.30"]
[Round "5.22"]
[White "Roos, David"]
[Black "Van Doren, Bas"]
[Result "0-1"]
[ECO "B42"]
[WhiteElo "2114"]
[BlackElo "1976"]
[Annotator "NA"]
[PlyCount "66"]
[EventDate "2019.07.22"]
[EventType "swiss"]
[EventCountry "BEL"]
[SourceTitle "playchess.com"]
[Source "ChessBase"]
[SourceQuality "1"]
[TimeControl "40/5400+30:1800+30"]

1. e4 {[%emt 0:00:00]} c5 {[%emt 0:00:00]} 2. Nf3 {[%emt 0:00:00]} e6 {[%emt 0:00:00]} 3. d4 {[%emt 0:00:00]} cxd4 {[%emt 0:00:00]} 4. Nxd4 {[%emt 0:00:00]} a6 {[%emt 0:00:00]} 5. Bd3 {[%emt 0:00:00]} Bc5 {[%emt 0:00:05]} 6. Nb3 {[%emt 0:00:00]} Ba7 {[%emt 0:00:05]} 7. O-O {[%emt 1:33:30]} Nc6 {[%emt 0:01:33]} 8. Qg4 {[%emt 0:00:05]} Qf6 {[%emt 0:00:55]} 9. Qg3 {[%emt 0:07:48]} Nge7 {[%emt 0:04:11]} 10. Kh1 {[%emt 0:03:44]} Qg6 {[%emt 0:14:49]} 11. Bf4 {[%emt 0:10:53]} O-O {[%emt 0:04:46]} 12. Qh4 {[%emt 0:08:09]} e5 {[%emt 0:13:26]} 13. Bxe5 {[%emt 0:03:23]} Nxe5 {[%emt 0:00:04]} 14. Qxe7 {[%emt 0:00:05]} Qh5 {[%emt 0:00:50]} 15. f4 {[%emt 0:12:46]} Ng4 {[%emt 0:02:37]} 16. h3 {[%emt 0:00:09]} Nf2+ {[%emt 0:01:18]} 17. Kh2 {[%emt 0:00:07]} d5 {[%emt 0:01:53]} 18. Qg5 {[%emt 0:03:23]} Qxg5 {[%emt 0:02:26]} 19. fxg5 {[%emt 0:00:06]} dxe4 {[%emt 0:00:52]} 20. Be2 {[%emt 0:00:53]} Bf5 {[%emt 0:06:02]} 21. Nc3 {[%emt 0:06:16]} Rfd8 {[%emt 0:02:52]} 22. Na4 {[%emt 0:05:27]} e3 {[%emt 0:03:00]} 23. c4 {[%emt 0:03:12]} Bd3 {[%emt 0:07:45]} 24. Rae1 {[%emt 0:01:42]} Ne4 {[%emt 0:09:49]} 25. Bxd3 {[%emt 0:06:23]} Rxd3 {[%emt 0:00:47]} 26. c5 {[%emt 0:05:10]} Bb8+ {[%emt 0:02:02]} 27. Kg1 {[%emt 0:00:01]} Bg3 {[%emt 0:21:23]} 28. Nc1 {[%emt 0:00:01]} Bf2+ {[%emt 0:02:10]} 29. Kh2 {[%emt 0:00:13]} Rd2 {[%emt 0:20:03]} 30. Nb6 {[%emt 0:03:21]} Rad8 {[%emt 0:01:15]} 31. Nc4 {[%emt 0:00:14]} Bg3+ {[%emt 0:01:32]} 32. Kg1 {[%emt 0:00:25]} Bxe1 {[%emt 0:00:08]} 33. Rxe1 {[%emt 0:02:59]} Rd1 {[%emt 0:00:04]} 0-1

[Event "18th Charleroi Open-A 2019"]
[Site "Charleroi"]
[Date "2019.07.30"]
[Round "5.23"]
[White "Uhoda, Philippe"]
[Black "Iolis, Oleg"]
[Result "1-0"]
[ECO "D88"]
[WhiteElo "2062"]
[BlackElo "2178"]
[Annotator "NA"]
[PlyCount "111"]
[EventDate "2019.07.22"]
[EventType "swiss"]
[EventCountry "BEL"]
[SourceTitle "playchess.com"]
[Source "ChessBase"]
[SourceQuality "1"]
[TimeControl "40/5400+30:1800+30"]

1. d4 {[%emt 0:01:30]} Nf6 {[%emt 0:00:00]} 2. c4 {[%emt 0:00:08]} g6 {[%emt 0:00:00]} 3. Nc3 {[%emt 0:00:05]} d5 {[%emt 0:00:00]} 4. cxd5 {[%emt 0:00:26]} Nxd5 {[%emt 0:00:00]} 5. e4 {[%emt 0:00:16]} Nxc3 {[%emt 0:00:00]} 6. bxc3 {[%emt 0:00:06]} Bg7 {[%emt 0:00:00]} 7. Bc4 {[%emt 0:00:27]} c5 {[%emt 0:00:03]} 8. Ne2 {[%emt 0:00:10]} Nc6 {[%emt 0:04:09]} 9. Be3 {[%emt 0:02:00]} O-O {[%emt 0:00:17]} 10. O-O {[%emt 0:00:00]} cxd4 {[%emt 0:01:45]} 11. cxd4 {[%emt 0:00:00]} Na5 {[%emt 0:03:16]} 12. Bd3 {[%emt 0:00:00]} Be6 {[%emt 0:01:08]} 13. Qa4 {[%emt 0:12:46]} Bd7 {[%emt 0:06:33]} 14. Qa3 {[%emt 0:02:33]} Rc8 {[%emt 0:14:48]} 15. Rab1 {[%emt 0:04:07]} e6 {[%emt 0:07:29]} 16. Rfc1 {[%emt 0:07:35]} b6 {[%emt 0:05:26]} 17. Ba6 {[%emt 0:03:08]} Rxc1+ {[%emt 0:01:02]} 18. Rxc1 {[%emt 0:00:48]} Bc6 {[%emt 0:00:56]} 19. f3 {[%emt 0:02:36]} Qd7 {[%emt 0:00:52]} 20. Qb4 {[%emt 0:11:02]} Rd8 {[%emt 0:02:08]} 21. h4 {[%emt 0:08:45]} h5 {[%emt 0:01:51]} 22. e5 {[%emt 0:05:23]} Bf8 {[%emt 0:03:26]} 23. Qe1 {[%emt 0:06:59]} Ba3 {[%emt 0:20:19]} 24. Rb1 {[%emt 0:01:24]} Bd5 {[%emt 0:01:21]} 25. Bg5 {[%emt 0:02:02]} Be7 {[%emt 0:00:31]} 26. Qg3 {[%emt 0:01:44]} Bxa2 {[%emt 0:02:00]} 27. Rc1 {[%emt 0:04:52]} Nb3 {[%emt 0:06:38]} 28. Rc2 {[%emt 0:03:52]} Bb1 {[%emt 0:01:03]} 29. Rb2 {[%emt 0:00:37]} Nxd4 {[%emt 0:02:08]} 30. Rxb1 {[%emt 0:00:21]} b5 {[%emt 0:00:46]} 31. Nxd4 {[%emt 0:02:00]} Qxd4+ {[%emt 0:00:22]} 32. Kh2 {[%emt 0:00:13]} Bxg5 {[%emt 0:02:47]} 33. Qxg5 {[%emt 0:00:14]} Rf8 {[%emt 0:01:11]} 34. Bxb5 {[%emt 0:01:17]} a5 {[%emt 0:00:13]} 35. Kg3 {[%emt 0:04:44]} Qc3 {[%emt 0:02:20]} 36. Rc1 {[%emt 0:02:43]} Qb4 {[%emt 0:00:54]} 37. Bd3 {[%emt 0:00:45]} Qb7 {[%emt 0:00:25]} 38. Be4 {[%emt 0:02:44]} Qa7 {[%emt 0:02:26]} 39. Rb1 {[%emt 0:02:23]} Rb8 {[%emt 0:00:16]} 40. Bxg6 {[%emt 0:03:10]} fxg6 {[%emt 0:00:03]} 41. Qxg6+ {[%emt 0:30:21]} Kh8 {[%emt 0:30:10]} 42. Qh6+ {[%emt 0:00:49]} Kg8 {[%emt 0:00:03]} 43. Qxe6+ {[%emt 0:00:22]} Kh7 {[%emt 0:00:15]} 44. Qf5+ {[%emt 0:02:09]} Kg7 {[%emt 0:00:18]} 45. Qg5+ {[%emt 0:00:14]} Kf8 {[%emt 0:00:15]} 46. Qf4+ {[%emt 0:01:51]} Kg7 {[%emt 0:00:31]} 47. Qf6+ {[%emt 0:00:00]} Kh7 {[%emt 0:00:00]} 48. Rxb8 {[%emt 0:00:00]} Qxb8 {[%emt 0:00:00]} 49. Qf5+ {[%emt 0:00:00]} Kg7 {[%emt 0:00:00]} 50. Qxh5 {[%emt 0:00:00]} Qg8 {[%emt 0:00:00]} 51. Kh2 {[%emt 0:00:00]} Qe6 {[%emt 0:00:00]} 52. Qg5+ {[%emt 0:00:00]} Kh7 {[%emt 0:00:00]} 53. Qf4 {[%emt 0:00:00]} Kg6 {[%emt 0:00:00]} 54. Qe4+ {[%emt 0:00:00]} Qf5 {[%emt 0:00:00]} 55. h5+ {[%emt 0:00:00]} Kg5 {[%emt 0:00:00]} 56. Qe3+ {[%emt 0:00:00]} 1-0

[Event "18th Charleroi Open-A 2019"]
[Site "Charleroi"]
[Date "2019.07.30"]
[Round "5.24"]
[White "Godde, Matthias"]
[Black "Moreels, Yves"]
[Result "0-1"]
[ECO "B01"]
[WhiteElo "1989"]
[BlackElo "2079"]
[Annotator "NA"]
[PlyCount "82"]
[EventDate "2019.07.22"]
[EventType "swiss"]
[EventCountry "BEL"]
[SourceTitle "playchess.com"]
[Source "ChessBase"]
[SourceQuality "1"]
[TimeControl "40/5400+30:1800+30"]

1. e4 {[%emt 0:00:00]} Nc6 {[%emt 0:00:00]} 2. Nf3 {[%emt 0:00:00]} d5 {[%emt 0:00:00]} 3. exd5 {[%emt 0:00:00]} Qxd5 {[%emt 0:00:00]} 4. Nc3 {[%emt 0:00:00]} Qa5 {[%emt 0:00:01]} 5. d4 {[%emt 0:00:02]} Bg4 {[%emt 0:00:14]} 6. Be2 {[%emt 0:05:27]} O-O-O {[%emt 0:00:14]} 7. Be3 {[%emt 0:08:04]} Nf6 {[%emt 0:00:39]} 8. Nd2 {[%emt 0:13:43]} Bxe2 {[%emt 0:03:51]} 9. Qxe2 {[%emt 0:00:32]} Qf5 {[%emt 0:04:00]} 10. Nb3 {[%emt 0:05:55]} e6 {[%emt 0:14:27]} 11. O-O {[%emt 0:02:15]} Nd5 {[%emt 0:18:45]} 12. Rac1 {[%emt 0:15:12]} Nf4 {[%emt 0:06:02]} 13. Bxf4 {[%emt 0:05:05]} Qxf4 {[%emt 0:00:22]} 14. Qe3 {[%emt 0:00:25]} Qf5 {[%emt 0:01:42]} 15. Ne4 {[%emt 0:05:27]} h5 {[%emt 0:10:40]} 16. c3 {[%emt 0:02:50]} Rh6 {[%emt 0:05:37]} 17. Qe2 {[%emt 0:03:31]} a6 {[%emt 0:14:02]} 18. Rfd1 {[%emt 0:02:48]} Rg6 {[%emt 0:03:41]} 19. Nbc5 {[%emt 0:09:38]} Qd5 {[%emt 0:03:35]} 20. Nd3 {[%emt 0:12:54]} Bd6 {[%emt 0:01:22]} 21. b4 {[%emt 0:02:47]} Kb8 {[%emt 0:04:08]} 22. f3 {[%emt 0:01:46]} h4 {[%emt 0:01:27]} 23. Ndc5 {[%emt 0:02:24]} f5 {[%emt 0:01:07]} 24. Nxd6 {[%emt 0:00:40]} cxd6 {[%emt 0:01:46]} 25. Nd3 {[%emt 0:00:27]} Qc4 {[%emt 0:00:29]} 26. Qb2 {[%emt 0:00:33]} e5 {[%emt 0:00:43]} 27. dxe5 {[%emt 0:00:29]} h3 {[%emt 0:00:38]} 28. g3 {[%emt 0:00:26]} f4 {[%emt 0:00:04]} 29. g4 {[%emt 0:00:32]} dxe5 {[%emt 0:00:11]} 30. Nc5 {[%emt 0:00:17]} Rgd6 {[%emt 0:01:06]} 31. Rxd6 {[%emt 0:00:44]} Rxd6 {[%emt 0:00:02]} 32. Re1 {[%emt 0:01:07]} Rd8 {[%emt 0:00:48]} 33. a4 {[%emt 0:00:00]} a5 {[%emt 0:00:39]} 34. Nxb7 {[%emt 0:00:28]} Kxb7 {[%emt 0:00:38]} 35. bxa5+ {[%emt 0:00:01]} Ka8 {[%emt 0:00:19]} 36. Qb6 {[%emt 0:00:34]} Rb8 {[%emt 0:00:19]} 37. Qc7 {[%emt 0:00:39]} Qc5+ {[%emt 0:01:00]} 38. Kh1 {[%emt 0:00:11]} Qxc3 {[%emt 0:00:37]} 39. Rf1 {[%emt 0:00:38]} Qc4 {[%emt 0:04:15]} 40. Rd1 {[%emt 0:00:33]} Qc3 {[%emt 0:00:00]} 41. Rf1 {[%emt 0:30:39]} Qc2 {[%emt 0:26:50]} 0-1